[Event "*** Titled Tuesday Blitz"]
[Site "Chess.com"]
[Date "2019.08.06"]
[Round "3"]
[White "AminMolaei"]
[Black "Giraffe_Chess"]
[Result "1/2-1/2"]
[WhiteElo "2544"]
[BlackElo "2387"]
[TimeControl "180+2"]
[EndTime "13:36:56 PDT"]
[Termination "Game drawn by repetition"]

1. d4 {[%clk 0:03:01.9]} 1... Nf6 {[%clk 0:03:00.3]} 2. c4 {[%clk 0:03:03.2]}
2... g6 {[%clk 0:03:01.3]} 3. Nc3 {[%clk 0:03:03.8]} 3... d5 {[%clk 0:03:02.2]}
4. Bg5 {[%clk 0:03:04.3]} 4... Ne4 {[%clk 0:02:53.4]} 5. Bh4 {[%clk 0:03:05.6]}
5... Nxc3 {[%clk 0:02:52.8]} 6. bxc3 {[%clk 0:03:07.5]} 6... Bg7 {[%clk
0:02:53]} 7. Nf3 {[%clk 0:03:08]} 7... dxc4 {[%clk 0:02:53.2]} 8. e3 {[%clk
0:03:09.2]} 8... Be6 {[%clk 0:02:53.7]} 9. Be2 {[%clk 0:03:10.6]} 9... O-O
{[%clk 0:02:53.9]} 10. O-O {[%clk 0:03:11.7]} 10... Nd7 {[%clk 0:02:50.8]} 11.
Qc2 {[%clk 0:03:13]} 11... b5 {[%clk 0:02:35.3]} 12. Rfb1 {[%clk 0:03:10.9]}
12... c6 {[%clk 0:02:31.9]} 13. a4 {[%clk 0:03:11.6]} 13... a6 {[%clk
0:02:32.8]} 14. Ng5 {[%clk 0:03:08.2]} 14... Bd5 {[%clk 0:02:19.8]} 15. e4
{[%clk 0:03:04.9]} 15... h6 {[%clk 0:02:20.7]} 16. exd5 {[%clk 0:02:40]} 16...
hxg5 {[%clk 0:02:20.8]} 17. Bxg5 {[%clk 0:02:41.9]} 17... cxd5 {[%clk
0:02:21.3]} 18. axb5 {[%clk 0:02:37.6]} 18... axb5 {[%clk 0:02:21.5]} 19. Rxa8
{[%clk 0:02:37.7]} 19... Qxa8 {[%clk 0:02:22]} 20. Bxe7 {[%clk 0:02:38.6]} 20...
Re8 {[%clk 0:02:23]} 21. Bg5 {[%clk 0:02:34.8]} 21... b4 {[%clk 0:01:51.3]} 22.
cxb4 {[%clk 0:02:09.8]} 22... Bxd4 {[%clk 0:01:51.1]} 23. Rd1 {[%clk 0:02:00.7]}
23... Qa7 {[%clk 0:01:49.6]} 24. Bf3 {[%clk 0:02:01.6]} 24... Re5 {[%clk
0:01:32.7]} 25. Bh4 {[%clk 0:01:59.6]} 25... Rf5 {[%clk 0:01:28.8]} 26. Bg3
{[%clk 0:01:57.4]} 26... Ne5 {[%clk 0:00:57.4]} 27. Bxd5 {[%clk 0:01:41.7]}
27... Nd3 {[%clk 0:00:43.2]} 28. Bf3 {[%clk 0:01:41]} 28... Qb6 {[%clk
0:00:27.2]} 29. Qxc4 {[%clk 0:01:08.5]} 29... Bxf2+ {[%clk 0:00:21.5]} 30. Bxf2
{[%clk 0:00:51]} 30... Qxf2+ {[%clk 0:00:20.9]} 31. Kh1 {[%clk 0:00:50.1]} 31...
Rxf3 {[%clk 0:00:22.1]} 32. Qc8+ {[%clk 0:00:23.5]} 32... Kh7 {[%clk 0:00:21.5]}
33. Rg1 {[%clk 0:00:21.8]} 33... Qe3 {[%clk 0:00:14]} 34. h3 {[%clk 0:00:17.3]}
34... Rg3 {[%clk 0:00:13.3]} 35. Kh2 {[%clk 0:00:17.5]} 35... Rg5 {[%clk
0:00:12.5]} 36. Qd7 {[%clk 0:00:12.7]} 36... Qf4+ {[%clk 0:00:13.2]} 37. g3
{[%clk 0:00:12.6]} 37... Qe3 {[%clk 0:00:12]} 38. Qxf7+ {[%clk 0:00:12.9]} 38...
Kh8 {[%clk 0:00:12]} 39. Qf8+ {[%clk 0:00:12.6]} 39... Kh7 {[%clk 0:00:13.4]}
40. Qf7+ {[%clk 0:00:14.1]} 40... Kh8 {[%clk 0:00:14.6]} 41. Qf8+ {[%clk
0:00:15.4]} 41... Kh7 {[%clk 0:00:16]} 42. Qf7+ {[%clk 0:00:16.4]} 1/2-1/2

[Event "*** Titled Tuesday Blitz"]
[Site "Chess.com"]
[Date "2019.08.06"]
[Round "3"]
[White "WPWPWP-2015"]
[Black "RojonR"]
[Result "1-0"]
[WhiteElo "2408"]
[BlackElo "2435"]
[TimeControl "180+2"]
[EndTime "13:37:01 PDT"]
[Termination "WPWPWP-2015 won by resignation"]

1. e4 {[%clk 0:03:01.9]} 1... e5 {[%clk 0:03:00.1]} 2. Nf3 {[%clk 0:03:01.8]}
2... Nc6 {[%clk 0:03:01.4]} 3. Bc4 {[%clk 0:03:00.6]} 3... Nf6 {[%clk
0:03:01.1]} 4. d3 {[%clk 0:03:01.1]} 4... h6 {[%clk 0:03:02.2]} 5. O-O {[%clk
0:03:01.5]} 5... d6 {[%clk 0:03:03]} 6. c3 {[%clk 0:03:00.9]} 6... g5 {[%clk
0:03:04.1]} 7. Re1 {[%clk 0:03:00.1]} 7... Bg7 {[%clk 0:03:04.8]} 8. a4 {[%clk
0:02:57.4]} 8... O-O {[%clk 0:03:03.6]} 9. Nfd2 {[%clk 0:02:57.7]} 9... g4
{[%clk 0:03:01]} 10. Nf1 {[%clk 0:02:56.3]} 10... Nh5 {[%clk 0:03:00.9]} 11. g3
{[%clk 0:02:53.2]} 11... Kh8 {[%clk 0:03:00.8]} 12. Ne3 {[%clk 0:02:53.8]} 12...
f5 {[%clk 0:02:23.4]} 13. exf5 {[%clk 0:02:53.6]} 13... Bxf5 {[%clk 0:02:25]}
14. Nxf5 {[%clk 0:02:45.7]} 14... Rxf5 {[%clk 0:02:24.6]} 15. Qxg4 {[%clk
0:02:45.5]} 15... Qf6 {[%clk 0:02:24.2]} 16. Be3 {[%clk 0:02:41.2]} 16... Rf8
{[%clk 0:02:17.1]} 17. Nd2 {[%clk 0:02:30.2]} 17... Qd8 {[%clk 0:01:44.9]} 18.
Bd5 {[%clk 0:02:20.2]} 18... Ne7 {[%clk 0:01:30.4]} 19. Bxb7 {[%clk 0:02:03.3]}
19... d5 {[%clk 0:01:16]} 20. Bc5 {[%clk 0:02:00.3]} 20... d4 {[%clk 0:01:09.3]}
21. Be4 {[%clk 0:01:47.5]} 21... Rxf2 {[%clk 0:01:07]} 22. Nf3 {[%clk
0:01:24.7]} 22... Nf6 {[%clk 0:01:07.3]} 23. Qh4 {[%clk 0:01:25.3]} 23... Rxb2
{[%clk 0:01:04.2]} 24. Nxe5 {[%clk 0:01:23.7]} 24... dxc3 {[%clk 0:00:56.4]} 25.
Bxe7 {[%clk 0:00:24.7]} 25... Qd4+ {[%clk 0:00:54.9]} 26. Kh1 {[%clk 0:00:26]}
26... Nxe4 {[%clk 0:00:46.6]} 27. Qxe4 {[%clk 0:00:23.4]} 27... Qf2 {[%clk
0:00:44]} 28. Ng4 {[%clk 0:00:23.9]} 28... Qf3+ {[%clk 0:00:36.2]} 29. Qxf3
{[%clk 0:00:23]} 29... Rxf3 {[%clk 0:00:38.1]} 30. Ba3 {[%clk 0:00:17.1]} 30...
Rb3 {[%clk 0:00:31.4]} 31. Ne5 {[%clk 0:00:14]} 31... Bxe5 {[%clk 0:00:19.5]}
32. Rxe5 {[%clk 0:00:14.5]} 32... c2 {[%clk 0:00:21.4]} 33. Ree1 {[%clk
0:00:14.1]} 33... Rfxd3 {[%clk 0:00:22.1]} 34. Be7 {[%clk 0:00:14.8]} 34... Rd2
{[%clk 0:00:16.9]} 35. Bf6+ {[%clk 0:00:14.7]} 35... Kh7 {[%clk 0:00:15.5]} 36.
Be5 {[%clk 0:00:15.6]} 36... Rf3 {[%clk 0:00:15.1]} 37. Bf4 {[%clk 0:00:15.4]}
37... Rdf2 {[%clk 0:00:10.9]} 38. Rac1 {[%clk 0:00:15.7]} 38... Kg6 {[%clk
0:00:11.4]} 39. Kg1 {[%clk 0:00:15.8]} 39... Kf5 {[%clk 0:00:11.6]} 40. h3
{[%clk 0:00:16.4]} 40... h5 {[%clk 0:00:10.3]} 41. Re5+ {[%clk 0:00:17.2]} 41...
Kf6 {[%clk 0:00:11]} 42. Rc5 {[%clk 0:00:17.2]} 42... Re2 {[%clk 0:00:06.3]} 43.
R5xc2 {[%clk 0:00:17.5]} 1-0

[Event "*** Titled Tuesday Blitz"]
[Site "Chess.com"]
[Date "2019.08.06"]
[Round "3"]
[White "Keaton87"]
[Black "pedro_gines"]
[Result "1/2-1/2"]
[WhiteElo "2616"]
[BlackElo "2393"]
[TimeControl "180+2"]
[EndTime "13:37:03 PDT"]
[Termination "Game drawn by agreement"]

1. d4 {[%clk 0:03:01.9]} 1... d6 {[%clk 0:02:55.5]} 2. e4 {[%clk 0:03:01.3]}
2... Nf6 {[%clk 0:02:56.1]} 3. Nc3 {[%clk 0:03:02.2]} 3... e5 {[%clk 0:02:57.6]}
4. Nf3 {[%clk 0:03:02.3]} 4... Nbd7 {[%clk 0:02:58.5]} 5. Bc4 {[%clk 0:03:02.3]}
5... Be7 {[%clk 0:03:00]} 6. dxe5 {[%clk 0:03:03.2]} 6... Nxe5 {[%clk
0:03:00.3]} 7. Be2 {[%clk 0:03:04.2]} 7... O-O {[%clk 0:02:58.3]} 8. O-O {[%clk
0:03:05.3]} 8... Nxf3+ {[%clk 0:02:53.5]} 9. Bxf3 {[%clk 0:03:05.2]} 9... Re8
{[%clk 0:02:55.4]} 10. Bf4 {[%clk 0:03:02.8]} 10... Bf8 {[%clk 0:02:51.9]} 11.
Re1 {[%clk 0:03:02.5]} 11... Be6 {[%clk 0:02:47.3]} 12. Qd2 {[%clk 0:03:02.9]}
12... Nd7 {[%clk 0:02:41.1]} 13. Rad1 {[%clk 0:02:58.8]} 13... Ne5 {[%clk
0:02:37.3]} 14. Be2 {[%clk 0:02:59.6]} 14... Nc4 {[%clk 0:02:36.4]} 15. Qc1
{[%clk 0:02:49.6]} 15... Qf6 {[%clk 0:02:37.2]} 16. Bg3 {[%clk 0:02:34.5]} 16...
g6 {[%clk 0:02:15.5]} 17. Rd3 {[%clk 0:02:33.2]} 17... Ne5 {[%clk 0:02:10.9]}
18. Rdd1 {[%clk 0:02:29.5]} 18... Nc4 {[%clk 0:02:08.5]} 19. Bxc4 {[%clk
0:02:23.5]} 19... Bxc4 {[%clk 0:02:09.3]} 20. Qd2 {[%clk 0:02:18.5]} 20... Bg7
{[%clk 0:02:09.3]} 21. Bf4 {[%clk 0:02:14.9]} 21... Qe6 {[%clk 0:02:04.6]} 22.
a3 {[%clk 0:02:09]} 22... h5 {[%clk 0:01:58.4]} 23. Bh6 {[%clk 0:02:08.3]} 23...
Bh8 {[%clk 0:01:56.7]} 24. h3 {[%clk 0:02:08.8]} 24... a5 {[%clk 0:01:54.5]} 25.
Be3 {[%clk 0:02:06]} 25... Qe5 {[%clk 0:01:47.8]} 26. Bd4 {[%clk 0:02:04.2]}
26... Qxd4 {[%clk 0:01:47.8]} 27. Qxd4 {[%clk 0:02:06.1]} 27... Bxd4 {[%clk
0:01:49.1]} 28. Rxd4 {[%clk 0:02:08]} 28... Be6 {[%clk 0:01:50.7]} 29. Red1
{[%clk 0:02:05]} 29... h4 {[%clk 0:01:50]} 30. f3 {[%clk 0:02:01.4]} 30... Kg7
{[%clk 0:01:48.8]} 31. Kf2 {[%clk 0:02:02.4]} 31... g5 {[%clk 0:01:49]} 32. R1d2
{[%clk 0:02:01.9]} 32... Kg6 {[%clk 0:01:48.7]} 33. Nd1 {[%clk 0:01:55]} 33...
Ra6 {[%clk 0:01:48.3]} 34. Ne3 {[%clk 0:01:55.4]} 34... Rb6 {[%clk 0:01:49.3]}
35. b3 {[%clk 0:01:52.7]} 35... Ra8 {[%clk 0:01:49.8]} 36. Nd5 {[%clk
0:01:52.9]} 36... Bxd5 {[%clk 0:01:47.3]} 37. Rxd5 {[%clk 0:01:53.8]} 37... a4
{[%clk 0:01:43.2]} 38. b4 {[%clk 0:01:54.6]} 38... Rc6 {[%clk 0:01:44.6]} 39.
Ke3 {[%clk 0:01:50.9]} 39... Rc3+ {[%clk 0:01:32.5]} 40. R5d3 {[%clk 0:01:51.1]}
40... Rc4 {[%clk 0:01:33.5]} 41. Re2 {[%clk 0:01:32]} 41... Ra6 {[%clk
0:01:01.1]} 42. Kd2 {[%clk 0:01:32.2]} 42... Rac6 {[%clk 0:01:01.4]} 43. c3
{[%clk 0:01:33]} 43... Rb6 {[%clk 0:00:55.5]} 44. Rd4 {[%clk 0:01:27.7]} 44...
Rxd4+ {[%clk 0:00:50.3]} 45. cxd4 {[%clk 0:01:29.6]} 45... Rc6 {[%clk
0:00:51.8]} 46. Kd3 {[%clk 0:01:19.4]} 46... b5 {[%clk 0:00:51.8]} 47. Rc2
{[%clk 0:01:10]} 47... Rxc2 {[%clk 0:00:51.5]} 48. Kxc2 {[%clk 0:01:11.9]} 48...
c6 {[%clk 0:00:44.8]} 49. Kd3 {[%clk 0:01:12.6]} 49... f5 {[%clk 0:00:38.3]} 50.
Ke3 {[%clk 0:00:59.2]} 50... Kf6 {[%clk 0:00:34.3]} 51. Kd3 {[%clk 0:00:43.4]}
51... f4 {[%clk 0:00:20.7]} 52. Kc3 {[%clk 0:00:40.9]} 52... Ke6 {[%clk
0:00:21.7]} 53. Kd2 {[%clk 0:00:38.8]} 53... Kf6 {[%clk 0:00:22.8]} 54. Kd3
{[%clk 0:00:39.3]} 54... Ke6 {[%clk 0:00:24.2]} 55. Kc3 {[%clk 0:00:33.8]}
1/2-1/2

[Event "*** Titled Tuesday Blitz"]
[Site "Chess.com"]
[Date "2019.08.06"]
[Round "3"]
[White "JakeCarlosBanawa"]
[Black "Supernotar"]
[Result "0-1"]
[WhiteElo "2360"]
[BlackElo "2620"]
[TimeControl "180+2"]
[EndTime "13:37:10 PDT"]
[Termination "Supernotar won by resignation"]

1. d4 {[%clk 0:03:01.9]} 1... d5 {[%clk 0:03:00.6]} 2. c4 {[%clk 0:03:02.4]}
2... dxc4 {[%clk 0:02:54.2]} 3. e4 {[%clk 0:03:02.3]} 3... Nf6 {[%clk
0:02:49.3]} 4. e5 {[%clk 0:03:00.9]} 4... Nd5 {[%clk 0:02:46.7]} 5. Bxc4 {[%clk
0:03:02.4]} 5... Nb6 {[%clk 0:02:47.6]} 6. Bd3 {[%clk 0:03:01.5]} 6... Nc6
{[%clk 0:02:48.6]} 7. Ne2 {[%clk 0:03:01.9]} 7... Nb4 {[%clk 0:02:44.5]} 8. Be4
{[%clk 0:02:48.3]} 8... f5 {[%clk 0:02:45.3]} 9. Bf3 {[%clk 0:02:36.9]} 9...
N4d5 {[%clk 0:02:42.1]} 10. Nbc3 {[%clk 0:02:36.4]} 10... Be6 {[%clk 0:02:36.2]}
11. O-O {[%clk 0:02:31.2]} 11... Qd7 {[%clk 0:02:36]} 12. a4 {[%clk 0:02:24.6]}
12... a5 {[%clk 0:02:34.6]} 13. Nf4 {[%clk 0:02:21.2]} 13... Nxf4 {[%clk
0:02:33.9]} 14. Bxf4 {[%clk 0:02:21.4]} 14... Nd5 {[%clk 0:02:30.1]} 15. Nxd5
{[%clk 0:02:07.9]} 15... Bxd5 {[%clk 0:02:31]} 16. e6 {[%clk 0:02:07.2]} 16...
Bxe6 {[%clk 0:02:13.8]} 17. d5 {[%clk 0:01:44.5]} 17... Bf7 {[%clk 0:02:12.2]}
18. Rc1 {[%clk 0:01:45.1]} 18... Rc8 {[%clk 0:02:11.8]} 19. Qd4 {[%clk 0:01:40]}
19... Rg8 {[%clk 0:02:01]} 20. h4 {[%clk 0:01:32.7]} 20... g6 {[%clk 0:02:01]}
21. Rfe1 {[%clk 0:01:24.4]} 21... Bg7 {[%clk 0:01:53.6]} 22. Be5 {[%clk
0:01:23.9]} 22... Bxe5 {[%clk 0:01:51]} 23. Rxe5 {[%clk 0:01:25.8]} 23... Kf8
{[%clk 0:01:51.3]} 24. Rce1 {[%clk 0:01:23.7]} 24... Re8 {[%clk 0:01:52.4]} 25.
Qd2 {[%clk 0:01:20.7]} 25... Kg7 {[%clk 0:01:52]} 26. Qxa5 {[%clk 0:01:19.8]}
26... Qd6 {[%clk 0:01:39.4]} 27. Qc3 {[%clk 0:01:19]} 27... Kf8 {[%clk
0:01:15.2]} 28. Qe3 {[%clk 0:01:19.2]} 28... Rg7 {[%clk 0:01:08.4]} 29. a5
{[%clk 0:01:05.1]} 29... Bg8 {[%clk 0:01:02.8]} 30. Qb3 {[%clk 0:00:59.7]} 30...
Rb8 {[%clk 0:00:53.6]} 31. Qc3 {[%clk 0:00:52.8]} 31... Rf7 {[%clk 0:00:47.5]}
32. Re6 {[%clk 0:00:36.9]} 32... Qd7 {[%clk 0:00:45.6]} 33. Rc1 {[%clk
0:00:37.6]} 33... Rc8 {[%clk 0:00:45]} 34. Qb4 {[%clk 0:00:28.5]} 34... c6
{[%clk 0:00:37]} 35. dxc6 {[%clk 0:00:25.8]} 35... Qxe6 {[%clk 0:00:35.5]} 36.
Qxb7 {[%clk 0:00:20.3]} 36... Kg7 {[%clk 0:00:26.9]} 37. Rd1 {[%clk 0:00:16.9]}
37... Rff8 {[%clk 0:00:25.7]} 38. Rd7 {[%clk 0:00:16.6]} 38... Rfe8 {[%clk
0:00:26.1]} 39. Bd5 {[%clk 0:00:16.2]} 39... Qe1+ {[%clk 0:00:26.1]} 40. Kh2
{[%clk 0:00:17.2]} 40... Bxd5 {[%clk 0:00:26.7]} 41. Rxd5 {[%clk 0:00:15.7]}
41... Qxf2 {[%clk 0:00:27.3]} 42. Rd7 {[%clk 0:00:13.5]} 42... Qxh4+ {[%clk
0:00:27.5]} 43. Kg1 {[%clk 0:00:14.7]} 43... Qe1+ {[%clk 0:00:28.4]} 44. Kh2
{[%clk 0:00:15.5]} 44... Qe5+ {[%clk 0:00:29.2]} 45. Kg1 {[%clk 0:00:16.3]}
45... Rb8 {[%clk 0:00:29]} 46. a6 {[%clk 0:00:12.3]} 46... Rxb7 {[%clk
0:00:27.5]} 47. axb7 {[%clk 0:00:14.2]} 47... Qc5+ {[%clk 0:00:27.4]} 48. Kh2
{[%clk 0:00:11]} 48... Qxc6 {[%clk 0:00:28.3]} 49. Rxe7+ {[%clk 0:00:10]} 49...
Rxe7 {[%clk 0:00:23.1]} 50. b8=Q {[%clk 0:00:11.1]} 50... Qc7+ {[%clk
0:00:24.5]} 0-1

[Event "*** Titled Tuesday Blitz"]
[Site "Chess.com"]
[Date "2019.08.06"]
[Round "3"]
[White "WarlordX"]
[Black "iturrizaga"]
[Result "0-1"]
[WhiteElo "2520"]
[BlackElo "2934"]
[TimeControl "180+2"]
[EndTime "13:37:12 PDT"]
[Termination "iturrizaga won on time"]

1. d4 {[%clk 0:03:01.9]} 1... Nf6 {[%clk 0:03:00.2]} 2. c4 {[%clk 0:03:02.7]}
2... e6 {[%clk 0:03:01.5]} 3. Nf3 {[%clk 0:03:03.8]} 3... b6 {[%clk 0:03:02.1]}
4. g3 {[%clk 0:03:04.9]} 4... Ba6 {[%clk 0:03:03.2]} 5. Bg2 {[%clk 0:03:06.8]}
5... Bxc4 {[%clk 0:03:04.1]} 6. Ne5 {[%clk 0:03:07.5]} 6... Bd5 {[%clk
0:03:05.1]} 7. Bxd5 {[%clk 0:03:01.6]} 7... Nxd5 {[%clk 0:03:05.7]} 8. e4 {[%clk
0:03:02.3]} 8... Nf6 {[%clk 0:03:06.8]} 9. Nc3 {[%clk 0:03:03.4]} 9... Bb4
{[%clk 0:03:02.2]} 10. Qd3 {[%clk 0:03:05]} 10... O-O {[%clk 0:03:01.9]} 11. O-O
{[%clk 0:03:05.4]} 11... Nc6 {[%clk 0:02:59.9]} 12. Bg5 {[%clk 0:02:56.7]} 12...
Be7 {[%clk 0:02:58.5]} 13. Nxc6 {[%clk 0:02:42.8]} 13... dxc6 {[%clk 0:03:00.4]}
14. Rfd1 {[%clk 0:02:44.1]} 14... Nd7 {[%clk 0:02:50.7]} 15. Bf4 {[%clk
0:02:41.7]} 15... Qc8 {[%clk 0:02:41.9]} 16. Rac1 {[%clk 0:02:35.6]} 16... Qb7
{[%clk 0:02:41.5]} 17. Qc4 {[%clk 0:02:31.6]} 17... Rad8 {[%clk 0:02:29.5]} 18.
b4 {[%clk 0:02:25.9]} 18... b5 {[%clk 0:02:26]} 19. Qb3 {[%clk 0:02:26.5]} 19...
Nb6 {[%clk 0:02:27.1]} 20. Rc2 {[%clk 0:02:04.2]} 20... Nc4 {[%clk 0:02:23.8]}
21. Re2 {[%clk 0:01:34.1]} 21... Rd7 {[%clk 0:02:22.4]} 22. Be3 {[%clk 0:01:21]}
22... Rfd8 {[%clk 0:02:22]} 23. Rc1 {[%clk 0:01:20.7]} 23... a5 {[%clk
0:01:57.1]} 24. a3 {[%clk 0:01:19.9]} 24... a4 {[%clk 0:01:19.8]} 25. Qa2 {[%clk
0:01:19.7]} 25... Qc8 {[%clk 0:01:20]} 26. Nb1 {[%clk 0:00:52.6]} 26... e5
{[%clk 0:01:15.2]} 27. dxe5 {[%clk 0:00:47.7]} 27... Rd1+ {[%clk 0:01:17.1]} 28.
Rxd1 {[%clk 0:00:48.7]} 28... Rxd1+ {[%clk 0:01:18.2]} 29. Kg2 {[%clk
0:00:50.6]} 29... Nxe5 {[%clk 0:01:17.4]} 30. Qc2 {[%clk 0:00:46.7]} 30... Rd8
{[%clk 0:01:12.9]} 31. h3 {[%clk 0:00:41.1]} 31... Nc4 {[%clk 0:01:11.4]} 32.
Bc1 {[%clk 0:00:35.7]} 32... Qe6 {[%clk 0:01:04.9]} 33. Nd2 {[%clk 0:00:34.7]}
33... Ne5 {[%clk 0:01:05.7]} 34. Bb2 {[%clk 0:00:27.6]} 34... c5 {[%clk
0:01:01.1]} 35. Bxe5 {[%clk 0:00:28.4]} 35... Qxe5 {[%clk 0:01:01.4]} 36. Nf3
{[%clk 0:00:30]} 36... Qe6 {[%clk 0:00:53.9]} 37. bxc5 {[%clk 0:00:29.9]} 37...
c6 {[%clk 0:00:55]} 38. Qc3 {[%clk 0:00:24.6]} 38... f6 {[%clk 0:00:40.4]} 39.
Nd4 {[%clk 0:00:21.5]} 39... Qe5 {[%clk 0:00:41.5]} 40. Rd2 {[%clk 0:00:15.2]}
40... Qxc5 {[%clk 0:00:41.8]} 41. Qb2 {[%clk 0:00:13.2]} 41... Qxa3 {[%clk
0:00:39.8]} 42. Qc2 {[%clk 0:00:12.9]} 42... Qc5 {[%clk 0:00:38.7]} 43. Qd1
{[%clk 0:00:12]} 43... Qe5 {[%clk 0:00:23.9]} 44. f3 {[%clk 0:00:10.6]} 44...
Bb4 {[%clk 0:00:23.1]} 45. Rd3 {[%clk 0:00:11.3]} 45... Qd6 {[%clk 0:00:21]} 46.
Qb1 {[%clk 0:00:06]} 46... c5 {[%clk 0:00:22]} 0-1

[Event "*** Titled Tuesday Blitz"]
[Site "Chess.com"]
[Date "2019.08.06"]
[Round "3"]
[White "Orest_Vovk"]
[Black "pandamaster3000"]
[Result "1-0"]
[WhiteElo "2219"]
[BlackElo "2306"]
[TimeControl "180+2"]
[EndTime "13:37:15 PDT"]
[Termination "Orest_Vovk won by resignation"]

1. h4 {[%clk 0:03:01.9]} 1... e5 {[%clk 0:02:59]} 2. h5 {[%clk 0:03:01.8]} 2...
d5 {[%clk 0:02:57.9]} 3. h6 {[%clk 0:03:02.5]} 3... Nxh6 {[%clk 0:02:58.8]} 4.
d4 {[%clk 0:03:03.4]} 4... e4 {[%clk 0:02:40.6]} 5. Bxh6 {[%clk 0:03:01.9]} 5...
gxh6 {[%clk 0:02:42.5]} 6. e3 {[%clk 0:03:03]} 6... c6 {[%clk 0:02:43.9]} 7. c4
{[%clk 0:03:03.5]} 7... Rg8 {[%clk 0:02:35.4]} 8. Nc3 {[%clk 0:03:04]} 8... Be6
{[%clk 0:02:23.2]} 9. Qb3 {[%clk 0:03:04.6]} 9... Qb6 {[%clk 0:02:08.5]} 10. Nh3
{[%clk 0:02:39.8]} 10... Nd7 {[%clk 0:01:51.4]} 11. Nf4 {[%clk 0:02:28]} 11...
Nf6 {[%clk 0:01:49.7]} 12. cxd5 {[%clk 0:02:16.9]} 12... cxd5 {[%clk 0:01:37.8]}
13. Bb5+ {[%clk 0:02:12.5]} 13... Kd8 {[%clk 0:01:29.4]} 14. Nfxd5 {[%clk
0:01:25.2]} 14... Nxd5 {[%clk 0:01:27.3]} 15. Nxd5 {[%clk 0:01:26.2]} 15... Qa5+
{[%clk 0:01:16]} 16. Kf1 {[%clk 0:01:20.5]} 16... a6 {[%clk 0:01:14.4]} 17. Bc4
{[%clk 0:01:12.1]} 17... Rc8 {[%clk 0:01:14.1]} 18. Nb6 {[%clk 0:00:49.4]} 18...
Bxc4+ {[%clk 0:00:37.9]} 19. Nxc4 {[%clk 0:00:46.1]} 19... Qb5 {[%clk
0:00:34.9]} 20. Qxb5 {[%clk 0:00:43.7]} 20... axb5 {[%clk 0:00:36.8]} 21. Ne5
{[%clk 0:00:35.7]} 21... Rc2 {[%clk 0:00:37]} 22. Nxf7+ {[%clk 0:00:36.1]} 22...
Kc8 {[%clk 0:00:29.3]} 23. Nxh6 {[%clk 0:00:35.9]} 23... Bxh6 {[%clk 0:00:30.8]}
24. Rxh6 {[%clk 0:00:36]} 24... Rg7 {[%clk 0:00:27.7]} 25. Rf6 {[%clk
0:00:31.4]} 25... Re7 {[%clk 0:00:23.7]} 26. b3 {[%clk 0:00:28.1]} 26... Kb8
{[%clk 0:00:22.9]} 27. g3 {[%clk 0:00:25.9]} 27... Ka7 {[%clk 0:00:23.5]} 28.
Kg2 {[%clk 0:00:23.8]} 28... Rb2 {[%clk 0:00:22.8]} 29. Rf5 {[%clk 0:00:19.2]}
29... Ka6 {[%clk 0:00:21.6]} 30. Rf6+ {[%clk 0:00:17.1]} 30... Ka7 {[%clk
0:00:22.8]} 31. Rf5 {[%clk 0:00:15.3]} 31... Ka6 {[%clk 0:00:23.9]} 32. Rh1
{[%clk 0:00:16.1]} 32... Rxa2 {[%clk 0:00:23.1]} 33. Rh6+ {[%clk 0:00:16.9]}
33... Ka7 {[%clk 0:00:23.8]} 34. Rhh5 {[%clk 0:00:14.3]} 34... Rb2 {[%clk
0:00:17.5]} 35. Rxb5 {[%clk 0:00:14.8]} 35... Rf7 {[%clk 0:00:18.5]} 36. Rhf5
{[%clk 0:00:15.3]} 36... Re7 {[%clk 0:00:16.3]} 37. Rf6 {[%clk 0:00:14.2]} 37...
Rd2 {[%clk 0:00:13.3]} 38. Re5 {[%clk 0:00:13.4]} 38... Rc7 {[%clk 0:00:10.4]}
39. Rxe4 {[%clk 0:00:14]} 39... Rcc2 {[%clk 0:00:11.4]} 40. Re7 {[%clk
0:00:13.7]} 40... Rb2 {[%clk 0:00:12.8]} 41. Rxh7 {[%clk 0:00:14]} 41... Rxb3
{[%clk 0:00:14.2]} 42. Re7 {[%clk 0:00:13.1]} 42... Kb8 {[%clk 0:00:12.1]} 43.
Rf8+ {[%clk 0:00:12.2]} 43... Ka7 {[%clk 0:00:13.5]} 44. g4 {[%clk 0:00:13.9]}
44... Ka6 {[%clk 0:00:13.3]} 45. g5 {[%clk 0:00:14.3]} 45... Rb1 {[%clk
0:00:10.2]} 46. g6 {[%clk 0:00:14.4]} 46... Rdd1 {[%clk 0:00:11.7]} 47. g7
{[%clk 0:00:15.6]} 47... Rg1+ {[%clk 0:00:13.3]} 48. Kf3 {[%clk 0:00:16.8]} 1-0